Workbook

Sheet PREFERENCE AND SENSITIVITY
F1: time (in 1/10th year) | G1: Growth of sensitivity | H1: Growth of preference Girls | I1: Growth of preference Boys
F2: 0 | G2: 0.01 | H2: 0.5 | I2: 0.5
F3: 0.1 | G3: =G2+G2*rate_sensitivity*(1-G2) -> 0.01198 | H3: =H2+H2*rate_preference*(Female_preference-H2)*G3 -> 0.5001198 | I3: =I2+I2*rate_preference*(Male_preference-I2)*G3 -> 0.4998802
A4: Parameter Names | B4: Parameter Values | F4: 0.2 | G4: 0.01434729592 | H4: 0.5002632214 | I4: 0.4997368473
F5: 0.3 | G5: 0.01717558612 | H5: 0.5004348415 | I5: 0.4995654077
A6: rate_sensitivity | B6: 0.2 | F6: 0.4 | G6: 0.0205517032 | H6: 0.50064009 | I6: 0.4993605155
A7: rate_preference | B7: 0.1 | F7: 0.5 | G7: 0.02457756934 | H7: 0.5008853928 | I7: 0.499115839
A8: Female_preference | B8: 0.7 | F8: 0.6 | G8: 0.02937227182 | H8: 0.501178333 | I8: 0.4988239319 | K8: SIMULATED COLOR CHOICES (20) OF A CHILD BASED ON THE CORRESPONDING PREFERENCE FOR PINK
A9: Male_preference | B9: 0.3 | F9: 0.7 | G9: 0.03507418011 | H9: 0.5015278301 | I9: 0.4984760727
F10: 0.8 | G10: 0.04184297651 | H10: 0.5019443322 | I10: 0.4980620968 | K10: GIRL | M10: CHOICES
F11: 0.9 | G11: 0.04986140488 | H11: 0.502440019 | I11: 0.4975702279 | L11: preference | M11: Choice1 | N11: Choice2 | O11: Choice3 | P11: Choice4 | Q11: Choice5 | R11: Choice6 | S11: Choice7 | T11: Choice8 | U11: Choice9 | V11: Choice10 | W11: Choice11 | X11: Choice12 | Y11: Choice13 | Z11: Choice14 | AA11: Choice15 | AB11: Choice16 | AC11: Choice17 | AD11: Choice18 | AE11: Choice19 | AF11: Choice20 | AG11: Average Choice Girl
F12: 1 | G12: 0.05933645392 | H12: 0.5030290047 | I12: 0.4969869205 | K12: age 1 | L12: =H12 -> 0.5030290047 | M12: =IF(RAND()<$L12,1,0) -> 1 | N12: =IF(RAND()<$L12,1,0) -> 1 | O12: 1 | P12: 0 | Q12: 1 | R12: 1 | S12: 1 | T12: 1 | U12: 1 | V12: 1 | W12: 0 | X12: 0 | Y12: 0 | Z12: 1 | AA12: 1 | AB12: 1 | AC12: 0 | AD12: =IF(RAND()<$L12,1,0) -> 1 | AE12: 0 | AF12: 0 | AG12: =AVERAGE(M12:V12) -> 0.9
F13: 1.1 | G13: 0.07049958175 | H13: 0.5037275295 | I13: 0.4962967302 | K13: age 2 | L13: =H22 -> 0.5187088912 | M13: =IF(RAND()<$L13,1,0) -> 0 | N13: 0 | O13: 1 | P13: 1 | Q13: 1 | R13: 0 | S13: 0 | T13: 1 | U13: 1 | V13: =IF(RAND()<$L13,1,0) -> 1 | W13: 0 | X13: 1 | Y13: 1 | Z13: 0 | AA13: 0 | AB13: 0 | AC13: 1 | AD13: 0 | AE13: 0 | AF13: 0 | AG13: =AVERAGE(M13:V13) -> 0.6
F14: 1.2 | G14: 0.08360545989 | H14: 0.5045541187 | I14: 0.4954822339 | K14: age 3 | L14: =H32 -> 0.5656072854 | M14: =IF(RAND()<$L14,1,0) -> 1 | N14: 1 | O14: 1 | P14: 0 | Q14: 1 | R14: 1 | S14: 1 | T14: 0 | U14: 1 | V14: 1 | W14: 1 | X14: 1 | Y14: 0 | Z14: 1 | AA14: 1 | AB14: 1 | AC14: 1 | AD14: 1 | AE14: 1 | AF14: 0 | AG14: =AVERAGE(M14:V14) -> 0.8
F15: 1.3 | G15: 0.09892857729 | H15: 0.5055296833 | I15: 0.4945240317 | K15: age 4 | L15: =H42 -> 0.6221529376 | M15: 1 | N15: 1 | O15: 1 | P15: 1 | Q15: 0 | R15: 0 | S15: 0 | T15: 1 | U15: 0 | V15: 0 | W15: 1 | X15: 1 | Y15: 1 | Z15: 0 | AA15: 1 | AB15: 0 | AC15: 1 | AD15: 0 | AE15: 0 | AF15: 0 | AG15: =AVERAGE(M15:V15) -> 0.5
F16: 1.4 | G16: 0.1167569201 | H16: 0.5066775267 | I16: 0.4934008674 | K16: age 5 | L16: =H52 -> 0.6594906515 | M16: 1 | N16: 1 | O16: 0 | P16: 1 | Q16: 1 | R16: 1 | S16: 0 | T16: 1 | U16: 1 | V16: 0 | W16: 1 | X16: 1 | Y16: 1 | Z16: 1 | AA16: 0 | AB16: 1 | AC16: 0 | AD16: 1 | AE16: 1 | AF16: 1 | AG16: =AVERAGE(M16:V16) -> 0.7
F17: 1.5 | G17: 0.1373818684 | H17: 0.5080232116 | I17: 0.4920899125
F18: 1.6 | G18: 0.1610834865 | H18: 0.5095942374 | I18: 0.4905672627
F19: 1.7 | G19: 0.1881106059 | H19: 0.5114194686 | I19: 0.4888086907 | K19: BOY | M19: CHOICES
F20: 1.8 | G20: 0.2186556071 | H20: 0.5135282653 | I20: 0.4867906891 | L20: preference | M20: Choice1 | N20: Choice2 | O20: Choice3 | P20: Choice4 | Q20: Choice5 | R20: Choice6 | S20: Choice7 | T20: Choice8 | U20: Choice9 | V20: Choice10 | W20: Choice11 | X20: Choice12 | Y20: Choice13 | Z20: Choice14 | AA20: Choice15 | AB20: Choice16 | AC20: Choice17 | AD20: Choice18 | AE20: Choice19 | AF20: Choice20 | AG20: Average Choice Boy
F21: 1.9 | G21: 0.2528246736 | H21: 0.5159492767 | I21: 0.4844918057 | K21: age 1 | L21: =I12 -> 0.4969869205 | M21: =IF(RAND()<$L21,1,0) -> 1 | N21: =IF(RAND()<$L21,1,0) -> 0 | O21: 0 | P21: 1 | Q21: 1 | R21: 1 | S21: 1 | T21: 1 | U21: 1 | V21: 0 | W21: 0 | X21: 1 | Y21: 1 | Z21: 0 | AA21: 0 | AB21: 0 | AC21: 1 | AD21: =IF(RAND()<$L21,1,0) -> 0 | AE21: 0 | AF21: 0 | AG21: =AVERAGE(M21:V21) -> 0.7
F22: 2 | G22: 0.2906055452 | H22: 0.5187088912 | I22: 0.4818942348 | K22: age 2 | L22: =I22 -> 0.4818942348 | M22: =IF(RAND()<$L22,1,0) -> 0 | N22: 0 | O22: 1 | P22: 1 | Q22: 0 | R22: 0 | S22: 1 | T22: 1 | U22: 0 | V22: =IF(RAND()<$L22,1,0) -> 0 | W22: 0 | X22: 1 | Y22: 0 | Z22: 0 | AA22: 1 | AB22: 1 | AC22: 0 | AD22: 1 | AE22: 0 | AF22: 1 | AG22: =AVERAGE(M22:V22) -> 0.4
F23: 2.1 | G23: 0.3318363376 | H23: 0.5218293909 | I23: 0.4789855637 | K23: age 3 | L23: =I32 -> 0.4408935733 | M23: =IF(RAND()<$L23,1,0) -> 0 | N23: 0 | O23: 0 | P23: 1 | Q23: 1 | R23: 0 | S23: 0 | T23: 1 | U23: 1 | V23: 1 | W23: 0 | X23: 0 | Y23: 0 | Z23: 0 | AA23: 0 | AB23: 0 | AC23: 0 | AD23: 1 | AE23: 0 | AF23: 0 | AG23: =AVERAGE(M23:V23) -> 0.5
F24: 2.2 | G24: 0.3761805342 | H24: 0.5253269166 | I24: 0.4757605115 | K24: age 4 | L24: =I42 -> 0.3961131875 | M24: 0 | N24: 0 | O24: 0 | P24: 0 | Q24: 1 | R24: 0 | S24: 0 | T24: 0 | U24: 1 | V24: 0 | W24: 0 | X24: 1 | Y24: 0 | Z24: 1 | AA24: 0 | AB24: 0 | AC24: 1 | AD24: 0 | AE24: 1 | AF24: 1 | AG24: =AVERAGE(M24:V24) -> 0.2
F25: 2.3 | G25: 0.4231142822 | H25: 0.5292094333 | I25: 0.4722224337 | K25: age 5 | L25: =I52 -> 0.3655048998 | M25: 1 | N25: 0 | O25: 0 | P25: 1 | Q25: 0 | R25: 0 | S25: 1 | T25: 1 | U25: 1 | V25: 1 | W25: 0 | X25: 0 | Y25: 0 | Z25: 0 | AA25: 0 | AB25: 1 | AC25: 0 | AD25: 1 | AE25: 0 | AF25: 1 | AG25: =AVERAGE(M25:V25) -> 0.6
F26: 2.4 | G26: 0.4719319994 | H26: 0.5334749425 | I26: 0.4683843383
F27: 2.5 | G27: 0.5217744369 | H27: 0.5381102272 | I27: 0.4642691771
F28: 2.6 | G28: 0.5716796117 | H28: 0.543090388 | I28: 0.4599092559
F29: 2.7 | G29: 0.6206520183 | H29: 0.5483793426 | I29: 0.4553447484
F30: 2.8 | G30: 0.6677406364 | H30: 0.5539313146 | I30: 0.4506214573
F31: 2.9 | G31: 0.7121132522 | H31: 0.5596931667 | I31: 0.4457881124
F32: 3 | G32: 0.7531148459 | H32: 0.5656072854 | I32: 0.4408935733
F33: 3.1 | G33: 0.7903014208 | H33: 0.5716146429 | I33: 0.4359842943
F34: 3.2 | G34: 0.8234464378 | H34: 0.5776576652 | I34: 0.431102326
F35: 3.3 | G35: =G34+G34*rate_sensitivity*(1-G34) -> 0.8525229182 | H35: =H34+H34*rate_preference*(Female_preference-H34)*G35 -> 0.5836826141 | I35: =I34+I34*rate_preference*(Male_preference-I34)*G35 -> 0.4262839929
F36: 3.4 | G36: 0.8776684366 | H36: 0.5896413189 | I36: 0.421559254
F37: 3.5 | G37: 0.899141747 | H37: 0.5954922175 | I37: 0.4169516535
F38: 3.6 | G38: 0.9172789202 | H38: 0.6012007718 | I38: 0.4124787093
F39: 3.7 | G39: 0.9324545807 | H39: 0.6067393816 | I39: 0.4081525795
F40: 3.8 | G40: 0.9450511879 | H40: 0.6120869433 | I40: 0.4039808633
F41: 3.9 | G41: 0.9554370759 | H41: 0.6172281917 | I41: 0.3999674276
F42: 4 | G42: 0.9639524899 | H42: 0.6221529376 | I42: 0.3961131875
F43: 4.1 | G43: 0.9709021073 | H43: 0.6268552863 | I43: 0.392416798
F44: 4.2 | G44: 0.9765523484 | H44: 0.6313328912 | I44: 0.3888752426
F45: 4.3 | G45: 0.9811319202 | H45: 0.6355862751 | I45: 0.3854843152
F46: 4.4 | G46: 0.9848343353 | H46: 0.6396182341 | I46: 0.3822390041
F47: 4.5 | G47: 0.9878214688 | H47: 0.6434333269 | I47: 0.3791337918
F48: 4.6 | G48: 0.9902275117 | H48: 0.6470374463 | I48: 0.376162882
F49: 4.7 | G49: 0.992162909 | H49: 0.6504374651 | I49: 0.3733203701
F50: 4.8 | G50: 0.9937180432 | H50: 0.6536409467 | I50: 0.3706003663
F51: 4.9 | G51: 0.994966542 | H51: 0.6566559118 | I51: 0.3679970839
F52: 5 | G52: 0.9959681665 | H52: 0.6594906515 | I52: 0.3655048998
